bitfinex/quotes_BTCUSD_20220109
["timestamp","ask_amount","ask_price","bid_price","bid_amount"]
[1641734994351,0.05440824,41584.0,41582.0,0.00011]
[1641734994753,0.05540824,41584.0,41583.0,0.460125]
[1641734994957,0.05540824,41584.0,41583.0,0.87681418]
[1641734995155,0.05540824,41584.0,41583.0,1.46440518]
[1641734995754,0.05540824,41584.0,41583.0,1.06440518]
[1641734996191,0.05440824,41584.0,41583.0,1.35760291]
[1641734996593,0.05440824,41584.0,41583.0,0.587591]
[1641734996792,0.05130824,41584.0,41583.0,0.589591]
[1641734997595,0.05130824,41584.0,41583.0,0.439591]
[1641734997793,0.05130824,41584.0,41583.0,0.84957315]
[1641734997992,0.05130824,41584.0,41583.0,0.84757315]
[1641734998897,0.05130824,41584.0,41583.0,0.84957315]
[1641734999096,0.05130824,41584.0,41583.0,0.79957315]
[1641734999945,0.05130824,41584.0,41583.0,0.79757315]
[1641735000150,0.05130824,41584.0,41583.0,0.387591]
[1641735000749,0.05230824,41584.0,41583.0,0.387591]
[1641735001148,0.05230824,41584.0,41583.0,0.83022186]
[1641735001650,0.05230824,41584.0,41583.0,0.387591]
[1641735002047,0.40130824,41584.0,41583.0,0.38720901]
[1641735002247,0.05130824,41584.0,41582.0,0.00011]
[1641735002847,0.05230824,41584.0,41583.0,0.387648]
[1641735003047,0.05230824,41584.0,41583.0,0.72682912]
[1641735003447,0.05230824,41584.0,41583.0,0.43879948]
[1641735003702,0.05230824,41584.0,41583.0,2.07192547]
[1641735004096,0.05130824,41584.0,41583.0,0.69892548]
[1641735004696,0.05130824,41584.0,41583.0,0.70192548]
[1641735004896,0.05130824,41584.0,41583.0,1.97492548]
[1641735005097,0.05130824,41584.0,41583.0,0.70192548]
[1641735005995,0.05130824,41584.0,41583.0,0.35974436]
[1641735006202,0.05130824,41584.0,41583.0,0.15974436]
[1641735006699,0.05130824,41584.0,41583.0,0.16174436]
[1641735007345,0.05130824,41584.0,41583.0,0.44673342]
[1641735007547,0.05130824,41584.0,41583.0,1.02783473]
[1641735007950,0.05130824,41584.0,41583.0,1.02583473]
[1641735008648,0.04630824,41584.0,41583.0,1.02583473]
[1641735008849,0.04630824,41584.0,41583.0,1.02783473]
[1641735009049,0.04630824,41584.0,41583.0,0.87783473]
[1641735009248,0.05448326,41584.0,41583.0,0.87783473]
[1641735009449,0.06265828,41584.0,41583.0,1.31996067]
[1641735009651,0.00197749,41590.0,41584.0,2.323]
[1641735009853,0.00197749,41590.0,41589.0,2.54321291]
[1641735010053,0.00197749,41590.0,41589.0,3.07073299]
[1641735010054,7.749e-05,41590.0,41589.0,3.07073299]
[1641735010251,0.00020767,41597.0,41589.0,3.07073299]
[1641735010453,0.00020767,41597.0,41593.0,0.27619344]
[1641735010651,0.00020767,41597.0,41594.0,0.34874461]
[1641735010852,0.00020769,41597.0,41594.0,0.45885261]
[1641735011095,0.00020769,41597.0,41596.0,0.387626]
[1641735011298,0.00020769,41597.0,41596.0,0.437626]
[1641735011497,0.00020769,41597.0,41596.0,1.860626]
[1641735011697,0.40669215,41605.0,41596.0,1.9186756]
[1641735011899,0.40669215,41605.0,41602.0,0.060087]
[1641735012098,0.40669215,41605.0,41604.0,0.387626]
[1641735012299,0.50896805,41607.0,41605.0,1.05]
[1641735012500,0.72018403,41609.0,41607.0,1.0]
[1641735012699,0.10982632,41609.0,41608.0,1.660626]
[1641735013001,0.10982632,41609.0,41608.0,1.810626]
[1641735013399,0.10982632,41609.0,41608.0,1.870704]
[1641735013597,0.10982632,41609.0,41608.0,2.64537681]
[1641735013803,0.10482632,41609.0,41608.0,1.05291736]
[1641735013999,0.10482632,41609.0,41608.0,0.447704]
[1641735014199,0.10482632,41609.0,41608.0,0.387626]
[1641735014852,0.10582632,41609.0,41608.0,0.388626]
[1641735015051,0.37522447,41609.0,41608.0,0.001]
[1641735015248,0.76285047,41609.0,41608.0,0.001]
[1641735015449,0.49345232,41609.0,41608.0,0.001]
[1641735015849,1.44345232,41609.0,41608.0,0.001]
[1641735016047,1.80032615,41609.0,41596.0,0.42127589]
[1641735016248,0.28037038,41608.0,41596.0,0.83000484]
[1641735016446,1.41270015,41609.0,41596.0,0.83000484]
[1641735016447,0.46270015,41609.0,41597.0,0.060108]
[1641735016649,0.46270015,41609.0,41598.0,0.447732]
[1641735016847,0.001,41608.0,41598.0,0.447732]
[1641735017247,0.31267128,41603.0,41598.0,0.447732]
[1641735017448,0.31267128,41603.0,41598.0,0.497732]
[1641735017648,0.31267128,41603.0,41597.0,0.05]
[1641735017849,0.31267128,41603.0,41596.0,0.22218969]
[1641735018048,0.31267128,41603.0,41596.0,0.21718969]
[1641735018594,0.0002113,41602.0,41596.0,0.21718969]
[1641735018794,0.0002113,41602.0,41596.0,0.001]
[1641735019094,0.0002113,41602.0,41597.0,1.55649163]
[1641735019294,0.0002113,41602.0,41601.0,0.837543]
[1641735019495,0.0002113,41602.0,41601.0,0.937543]
[1641735019695,0.002,41603.0,41602.0,0.28796695]
[1641735019896,0.002,41603.0,41602.0,0.67550995]
[1641735020095,0.10482632,41609.0,41602.0,0.67550995]
[1641735020096,0.10482632,41609.0,41605.0,0.060097]
[1641735020295,0.10482632,41609.0,41607.0,0.060094]
[1641735020697,0.10482632,41609.0,41608.0,0.387543]
[1641735020898,0.10582632,41609.0,41607.0,0.001]
[1641735021297,0.10582632,41609.0,41607.0,0.06109457]
[1641735021497,0.10582632,41609.0,41607.0,0.16109457]
[1641735021701,0.10582632,41609.0,41608.0,0.387543]
[1641735022348,0.10582632,41609.0,41608.0,1.78072027]
[1641735022549,0.10582632,41609.0,41608.0,0.65772027]
[1641735022748,0.10682632,41609.0,41608.0,1.07872027]
[1641735023148,0.10582632,41609.0,41608.0,1.07872027]
[1641735023951,0.10582632,41609.0,41608.0,0.97872027]
[1641735024152,0.10482632,41609.0,41608.0,0.97772027]
[1641735024753,0.10482632,41609.0,41608.0,0.97872027]
[1641735025953,0.10482632,41609.0,41608.0,1.12872027]
[1641735026201,0.10482632,41609.0,41608.0,1.12772027]
[1641735026398,0.10482632,41609.0,41608.0,0.92772027]
[1641735026601,0.10482632,41609.0,41608.0,0.807543]
[1641735026798,0.10482632,41609.0,41608.0,0.808543]
[1641735027598,0.10482632,41609.0,41608.0,0.86863319]
[1641735027997,0.10482632,41609.0,41608.0,0.92872419]
[1641735028200,0.10482632,41609.0,41608.0,0.92772419]
[1641735028599,0.10482632,41609.0,41608.0,2.20072419]
[1641735028902,0.10482632,41609.0,41608.0,2.20172419]
[1641735029100,0.10482632,41609.0,41608.0,2.40172419]
[1641735030139,0.10482632,41609.0,41608.0,2.40072419]
[1641735030339,0.10482632,41609.0,41608.0,2.20072419]
[1641735030940,0.10482632,41609.0,41608.0,2.20172419]
[1641735031243,0.10482632,41609.0,41608.0,2.48091419]
[1641735031445,0.00020765,41611.0,41609.0,0.10482632]
[1641735031641,0.00020765,41611.0,41610.0,1.387543]
[1641735031841,0.00020765,41612.0,41610.0,3.05524573]
[1641735032041,0.00020765,41612.0,41611.0,1.43023474]
[1641735032241,0.00020765,41612.0,41611.0,2.26683384]
[1641735032444,0.00020765,41612.0,41611.0,1.21397984]
[1641735032644,0.00020765,41612.0,41611.0,1.71397984]
[1641735032943,0.24589013,41621.0,41615.0,0.06008]
[1641735033143,0.24589013,41621.0,41616.0,0.1201615]
[1641735033796,0.00121974,41622.0,41617.0,0.05]
[1641735034003,0.00195635,41623.0,41618.0,0.060079]
[1641735034203,0.00799823,41620.0,41619.0,0.387543]
[1641735034798,0.00799823,41620.0,41619.0,0.388543]
[1641735034997,0.00799823,41620.0,41619.0,0.83058581]
[1641735035199,0.0077906,41620.0,41619.0,0.93058581]
[1641735035797,0.0077906,41620.0,41619.0,2.30358581]
[1641735036203,0.0077906,41620.0,41619.0,2.30258581]
[1641735036601,0.0077906,41620.0,41619.0,1.02958581]
[1641735036796,0.0077906,41620.0,41619.0,1.31365502]
[1641735036996,0.0077906,41620.0,41619.0,2.58665502]
[1641735037645,0.0077906,41620.0,41619.0,2.30358581]
[1641735038045,0.0077906,41620.0,41619.0,2.30258581]
[1641735038845,0.0077906,41620.0,41619.0,2.30358581]
[1641735039947,0.0077906,41620.0,41619.0,0.388543]
[1641735040148,0.0077906,41620.0,41612.0,0.120163]
[1641735040347,0.00124864,41618.0,41614.0,0.06008875]
[1641735040548,0.00124864,41618.0,41615.0,0.387543]
[1641735040848,0.00145627,41618.0,41615.0,0.387543]
[1641735041092,0.32641294,41618.0,41615.0,0.387543]
[1641735041292,0.32641294,41618.0,41614.0,0.001]
[1641735041492,0.32641294,41618.0,41615.0,0.06008638]
[1641735042095,0.58080871,41618.0,41615.0,0.06008638]
[1641735042295,0.57521267,41618.0,41615.0,0.06008638]
[1641735042493,0.57362462,41618.0,41615.0,0.06008638]
[1641735042794,0.32641294,41618.0,41615.0,0.06208638]
[1641735042994,0.32641294,41618.0,41615.0,0.002]
[1641735043195,0.00124864,41618.0,41616.0,0.060081]
[1641735043394,0.00020763,41619.0,41617.0,0.387543]
[1641735044095,0.00799823,41620.0,41617.0,0.387543]
[1641735044294,0.00799823,41620.0,41617.0,0.06008]
[1641735044496,0.00799823,41620.0,41611.0,1.02638509]
[1641735044695,0.32966775,41620.0,41612.0,0.387543]
[1641735044945,0.00599823,41620.0,41612.0,0.387543]
[1641735045145,0.0057906,41620.0,41612.0,0.387543]
[1641735045347,0.00020763,41618.0,41612.0,0.387543]
[1641735045546,0.00020763,41618.0,41615.0,0.12015978]
[1641735045747,0.00566276,41620.0,41616.0,0.387543]
[1641735046048,0.00266276,41620.0,41613.0,0.060086]
[1641735046249,0.00266276,41620.0,41618.0,0.00013157]
[1641735046847,0.00566276,41620.0,41618.0,0.00013157]
[1641735047649,1.537543,41619.0,41618.0,0.00013157]
[1641735047856,1.618633,41619.0,41618.0,0.00013157]
[1641735048047,1.618633,41619.0,41609.0,0.10482632]
[1641735048048,1.05,41618.0,41609.0,0.10482632]
[1641735048248,0.00128721,41610.0,41609.0,0.10482632]
[1641735048451,1.13883021,41610.0,41609.0,0.10482632]
[1641735048693,1.93337964,41610.0,41609.0,0.10482632]
[1641735048895,1.93437964,41610.0,41609.0,0.10482632]
[1641735049295,1.83437964,41610.0,41609.0,0.10482632]
[1641735049493,1.62830431,41610.0,41609.0,2.632e-05]
[1641735049899,0.25639439,41607.0,41605.0,0.0002025]
[1641735050094,0.26215579,41608.0,41605.0,0.0002025]
[1641735050295,0.38237679,41608.0,41605.0,0.0002025]
[1641735050494,0.00123591,41606.0,41605.0,0.0002025]
[1641735050697,0.75,41605.0,41604.0,0.0002025]
[1641735050893,1.03246001,41605.0,41604.0,0.0002025]
[1641735051094,1.42121033,41605.0,41604.0,0.0002025]
[1641735051299,1.48132833,41605.0,41604.0,0.0002025]
[1641735051699,1.48132833,41605.0,41595.0,0.45162375]
[1641735051894,1.09378533,41605.0,41599.0,0.00010052]
[1641735052741,1.03366733,41605.0,41599.0,0.00010052]
[1641735053843,0.58544,41616.0,41602.0,0.36337558]
[1641735054045,0.0002115,41604.0,41602.0,0.48357399]
[1641735054242,0.0002115,41604.0,41603.0,0.387543]
[1641735054846,0.0002115,41604.0,41603.0,0.447645]
[1641735055044,1.0,41605.0,41603.0,0.507746]
[1641735055247,1.0,41605.0,41603.0,0.56784495]
[1641735055446,1.0,41605.0,41604.0,0.2707486]
[1641735055648,0.25739004,41603.0,41602.0,0.120199]
[1641735055850,0.25739004,41603.0,41601.0,0.180296]
[1641735055851,1.5810748,41602.0,41589.0,0.00075494]
[1641735056095,0.00124904,41600.0,41592.0,0.5]
[1641735056296,0.21113321,41599.0,41598.0,0.00018947]
[1641735056496,0.59867621,41599.0,41598.0,0.00018947]
[1641735056696,0.92251041,41599.0,41598.0,0.00018947]
[1641735057297,0.92251041,41599.0,41593.0,0.37845984]
[1641735057499,0.53496741,41599.0,41596.0,0.00018949]
[1641735057698,0.387543,41598.0,41596.0,0.00018949]
[1641735057897,0.66981804,41598.0,41596.0,0.00018949]
[1641735058098,1.33347558,41597.0,41596.0,0.00018949]
[1641735058298,1.49887154,41597.0,41596.0,0.00018949]
[1641735058500,1.49887154,41597.0,41589.0,0.00075809]
[1641735058800,1.49887154,41597.0,41594.0,0.00019321]
[1641735058801,0.00120839,41595.0,41594.0,0.00019321]
[1641735058999,1.617075,41595.0,41594.0,0.00019321]
[1641735059398,1.677203,41595.0,41594.0,0.00019321]
[1641735059599,1.677203,41595.0,41582.0,0.00011]
[1641735059852,0.28227504,41594.0,41592.0,0.00019322]
[1641735060046,1.437543,41593.0,41592.0,0.00019322]
[1641735060448,1.49890426,41593.0,41592.0,0.00019322]
[1641735060646,0.44890426,41593.0,41587.0,0.34289634]
[1641735060846,0.00122526,41593.0,41590.0,0.00019652]
[1641735061742,0.00122526,41593.0,41587.0,0.34289634]
[1641735061944,0.00122526,41593.0,41590.0,0.24]
[1641735062143,0.1,41600.0,41590.0,0.24]
[1641735062144,0.3238342,41599.0,41590.0,0.24]
[1641735062944,0.3238342,41599.0,41597.0,0.44884172]
[1641735063144,0.00123391,41600.0,41597.0,0.44884172]
[1641735063997,0.00123391,41600.0,41591.0,0.31878439]
[1641735064197,0.00123391,41600.0,41596.0,0.0001927]
[1641735064495,0.387543,41599.0,41596.0,0.0001927]
[1641735064695,0.26303141,41598.0,41596.0,0.0001927]
[1641735064897,0.06135591,41600.0,41596.0,0.0001927]
[1641735065096,0.06135591,41600.0,41590.0,0.5345833]
[1641735065301,0.34555761,41598.0,41595.0,0.00019271]
[1641735065496,0.00123391,41600.0,41595.0,0.3683981]
[1641735066097,0.387543,41599.0,41595.0,0.3683981]
[1641735066298,0.00124962,41596.0,41595.0,0.00019271]
[1641735066497,0.88879262,41596.0,41595.0,0.00019271]
[1641735066696,0.660128,41595.0,41583.0,0.001]
[1641735066897,0.6,41595.0,41583.0,0.001]
[1641735067346,0.31003266,41590.0,41583.0,0.001]
[1641735067548,0.31003266,41590.0,41584.0,0.35855875]
[1641735067746,0.00121671,41591.0,41584.0,0.40855875]
[1641735067951,0.00121671,41591.0,41584.0,0.35855875]
[1641735068548,0.00121671,41591.0,41585.0,0.00010385]
[1641735069546,0.00121671,41591.0,41586.0,0.00010385]
[1641735070649,0.00143216,41591.0,41586.0,0.00019787]
[1641735072195,0.00125873,41587.0,41586.0,0.00019787]
[1641735072696,1.44903323,41587.0,41586.0,0.00019787]
[1641735072893,1.010146,41585.0,41584.0,0.00018679]
[1641735073095,1.68757745,41585.0,41584.0,0.00018679]
[1641735073497,1.74896245,41585.0,41584.0,0.00018679]
[1641735073896,1.74896245,41585.0,41583.0,0.001]
[1641735074097,1.61122313,41584.0,41583.0,0.001]
[1641735074295,1.61122313,41584.0,41582.0,0.00029742]
[1641735074296,1.05,41583.0,41582.0,0.00029742]
[1641735074501,1.49895787,41583.0,41582.0,0.00029742]
[1641735074698,1.52786787,41583.0,41582.0,0.00029742]
[1641735074951,1.497698,41583.0,41582.0,0.00029742]
[1641735075152,1.497698,41583.0,41567.0,0.00043]
[1641735075153,0.136781,41579.0,41567.0,0.00043]
[1641735075351,0.060167,41570.0,41567.0,0.00043]
[1641735075553,0.00121988,41570.0,41567.0,0.00043]
[1641735075754,0.00121988,41570.0,41564.0,0.00362]
[1641735075954,0.00121988,41570.0,41564.0,1e-05]
[1641735076453,0.00128097,41567.0,41564.0,1e-05]
[1641735077155,0.00128097,41567.0,41561.0,0.43969179]
[1641735077357,0.00128097,41567.0,41562.0,0.387543]
[1641735078155,0.27898176,41572.0,41567.0,0.38165268]
[1641735078357,0.00125349,41573.0,41567.0,0.38165268]
[1641735078795,0.00125349,41573.0,41563.0,0.060155]
[1641735078995,0.00125349,41573.0,41566.0,0.23769189]
[1641735079197,0.85529412,41566.0,41563.0,0.060155]
[1641735079398,0.2899866,41573.0,41561.0,0.00502179]
[1641735079596,0.27898176,41572.0,41567.0,0.00019573]
[1641735079799,0.2899866,41573.0,41567.0,0.00019573]
[1641735079800,0.00125349,41573.0,41567.0,0.00019573]
[1641735079998,0.00021548,41576.0,41572.0,0.31212424]
[1641735080199,0.00021548,41576.0,41572.0,0.37226624]
[1641735080399,0.00021548,41576.0,41575.0,0.3423142]
[1641735080799,0.00021549,41576.0,41575.0,0.7298572]
[1641735080998,0.00021549,41576.0,41575.0,0.387543]
[1641735081204,0.00021549,41576.0,41572.0,0.0001957]
[1641735081600,0.00123315,41575.0,41572.0,0.0001957]
[1641735081801,0.00125246,41575.0,41572.0,0.0001957]
[1641735082001,0.00125246,41575.0,41566.0,0.23999885]
[1641735082202,0.00125246,41575.0,41567.0,0.387543]
[1641735082662,0.31537374,41571.0,41563.0,0.120301]
[1641735082864,0.25787119,41570.0,41564.0,0.387543]
[1641735083063,0.25787119,41570.0,41561.0,0.00502179]
[1641735083263,0.259129,41570.0,41561.0,0.00502179]
[1641735083462,0.00124441,41563.0,41561.0,0.00502179]
[1641735083663,0.33112908,41563.0,41561.0,0.00502179]
[1641735083864,0.387543,41562.0,41561.0,0.00502179]
[1641735084262,0.387543,41562.0,41560.0,0.00042]
[1641735084464,0.387543,41562.0,41559.0,0.00043]
[1641735084465,0.46731711,41561.0,41559.0,0.00043]
[1641735084662,0.387543,41560.0,41559.0,0.00043]
[1641735084862,0.3,41559.0,41557.0,0.0066357]
[1641735085067,0.387543,41558.0,41549.0,0.00050726]
[1641735085262,0.147543,41558.0,41549.0,0.00050726]
[1641735085665,0.0012984,41557.0,41549.0,0.00050726]
[1641735085863,0.387543,41556.0,41549.0,0.00050726]
[1641735086097,0.387543,41556.0,41551.0,0.00431]
[1641735086400,0.387543,41556.0,41548.0,0.00723038]
[1641735086401,0.00041,41549.0,41548.0,0.00723038]
[1641735086596,0.00041,41549.0,41543.0,0.00670941]
[1641735086597,0.45,41548.0,41543.0,0.00670941]
[1641735086797,0.30598181,41544.0,41543.0,0.00670941]
[1641735086998,0.60244152,41544.0,41543.0,0.00670941]
[1641735087303,0.50244152,41544.0,41543.0,0.00670941]
[1641735087499,0.58005152,41544.0,41543.0,0.00670941]
[1641735087696,0.58005152,41544.0,41543.0,0.00170941]
[1641735087899,0.58005152,41544.0,41538.0,0.00053]
[1641735087900,0.72562209,41543.0,41538.0,0.00053]
[1641735088097,1.00647665,41543.0,41541.0,0.0171106]
[1641735088296,0.18068345,41542.0,41541.0,1.06e-05]
[1641735088499,0.18068345,41542.0,41538.0,0.00053]
[1641735088500,0.424279,41541.0,41538.0,0.00053]
[1641735088702,0.25098015,41540.0,41537.0,0.00043]
[1641735088906,0.387543,41539.0,41537.0,0.00043]
[1641735089100,0.00124097,41541.0,41537.0,0.00043]
[1641735089498,0.00011353,41550.0,41538.0,0.387829]
[1641735089701,0.00011353,41550.0,41539.0,0.0012079]
[1641735089702,0.00140896,41550.0,41539.0,0.0012079]
[1641735089958,0.00011353,41550.0,41542.0,0.4129]
[1641735090158,0.00011353,41550.0,41546.0,0.32814394]
[1641735090658,0.00011353,41550.0,41548.0,1.435829]
[1641735090659,0.00021556,41550.0,41548.0,1.435829]
[1641735090860,0.00021556,41550.0,41548.0,1.485829]
[1641735091058,0.00021556,41550.0,41548.0,1.535829]
[1641735091258,0.00021556,41550.0,41548.0,0.385829]
[1641735091758,0.00021556,41551.0,41548.0,0.385829]
[1641735092758,0.00123482,41556.0,41548.0,0.385829]
[1641735092958,0.00021142,41551.0,41548.0,0.985829]
[1641735093359,0.00021142,41551.0,41548.0,0.385829]
[1641735094899,0.26106982,41556.0,41548.0,0.385829]
[1641735095100,0.00020761,41551.0,41548.0,0.385829]
[1641735095302,0.00166731,41549.0,41546.0,0.00018578]
[1641735095500,0.00166731,41549.0,41537.0,0.00043]
[1641735095501,0.50125834,41547.0,41537.0,0.00043]
[1641735095701,0.0012334,41545.0,41537.0,0.00043]
[1641735095901,0.387797,41544.0,41537.0,0.00043]
[1641735096100,0.34016148,41542.0,41537.0,0.00043]
[1641735096499,0.0012334,41545.0,41538.0,0.36349285]
[1641735097549,0.07262444,41548.0,41543.0,0.24265605]
[1641735098554,0.00175317,41549.0,41543.0,0.19265605]
[1641735098555,0.00052366,41549.0,41543.0,0.19265605]
[1641735099153,0.00052366,41549.0,41544.0,0.387797]
[1641735099354,0.00041,41549.0,41543.0,0.19265605]
[1641735099558,0.00062556,41549.0,41546.0,0.32266033]
[1641735099755,0.00062556,41549.0,41547.0,0.43886966]
[1641735100154,0.00062556,41549.0,41548.0,1.037797]
[1641735100358,0.00062556,41549.0,41548.0,1.087797]
[1641735100554,0.00041,41549.0,41548.0,0.437797]
[1641735100956,0.00041,41549.0,41548.0,0.387797]
[1641735101196,0.00041,41549.0,41548.0,0.437797]
[1641735101595,0.00041,41549.0,41548.0,0.76297928]
[1641735101797,0.00041,41549.0,41548.0,1.06297928]
[1641735101998,0.00041,41549.0,41548.0,0.437797]
[1641735102199,0.00041,41549.0,41548.0,0.387797]
[1641735103196,0.00041,41549.0,41547.0,0.43886966]
[1641735103396,0.00041,41549.0,41542.0,0.060187]
[1641735103596,0.00041,41549.0,41543.0,0.387797]
[1641735103897,0.00041,41549.0,41542.0,0.00019223]
[1641735104097,0.00021556,41548.0,41543.0,0.387797]
[1641735104497,0.32766748,41546.0,41542.0,0.00019223]
[1641735104702,0.277739,41545.0,41542.0,0.00019223]
[1641735104950,0.0012682,41543.0,41536.0,0.00032]
[1641735105153,0.0012682,41543.0,41542.0,0.00019223]
[1641735105549,0.00021556,41547.0,41542.0,0.00019223]
[1641735105950,0.00021556,41547.0,41543.0,0.38609027]
[1641735106150,0.00021143,41547.0,41543.0,0.38609027]
[1641735106750,0.00021143,41547.0,41544.0,0.28996201]
[1641735107150,0.00041,41549.0,41546.0,1.33902696]
[1641735107353,0.00021143,41548.0,41546.0,1.00122996]
[1641735107651,0.00021143,41548.0,41547.0,0.837797]
[1641735107853,0.00021143,41548.0,41547.0,1.537797]
[1641735108053,0.00021143,41548.0,41547.0,1.697968]
[1641735108253,0.00041,41549.0,41547.0,1.247968]
[1641735108602,0.00041,41549.0,41548.0,0.387797]
[1641735108801,0.00041,41549.0,41548.0,0.737797]
[1641735109002,0.00041,41549.0,41548.0,0.837797]
[1641735110006,0.00041,41549.0,41548.0,1.13435929]
[1641735110405,0.00041,41549.0,41548.0,0.387797]
[1641735114350,0.00041,41549.0,41548.0,0.92956235]
[1641735114549,1.00041,41549.0,41548.0,2.20256235]
[1641735114750,0.25189786,41565.0,41554.0,0.41831089]
[1641735114949,24.0,41624.0,41554.0,0.41831089]
[1641735114950,0.00123998,41564.0,41555.0,0.45578347]
[1641735115149,0.2630317,41568.0,41555.0,1.10001213]
[1641735115352,0.00125457,41572.0,41566.0,0.28960494]
[1641735115649,0.00125457,41572.0,41555.0,0.95906671]
[1641735115849,0.00125457,41572.0,41557.0,0.00123467]
[1641735116097,0.00125457,41572.0,41561.0,0.060158]
[1641735116299,0.00125457,41572.0,41563.0,0.45564916]
[1641735116501,0.00125457,41572.0,41563.0,0.51580816]
[1641735116700,0.31972425,41568.0,41560.0,0.36094983]
[1641735116897,0.31972425,41568.0,41562.0,0.37008349]
[1641735117697,0.31972425,41568.0,41563.0,0.060158]
[1641735117999,0.59765053,41568.0,41563.0,0.120317]
[1641735118196,0.31972425,41568.0,41563.0,0.120317]
[1641735118399,0.00125457,41572.0,41563.0,0.120317]
[1641735118997,0.00125457,41572.0,41563.0,0.36094741]
[1641735119199,0.30323662,41571.0,41563.0,0.36094741]
[1641735119398,0.00021551,41570.0,41563.0,0.36094741]
[1641735120458,0.2542135,41571.0,41563.0,0.36094741]
[1641735120459,0.00021551,41569.0,41563.0,0.36094741]
[1641735120663,0.00021551,41569.0,41564.0,0.387797]
[1641735121461,0.2542135,41571.0,41564.0,0.387797]
[1641735121661,0.00021178,41569.0,41563.0,0.36094741]
[1641735122465,0.00021178,41569.0,41564.0,0.387797]
[1641735122663,0.2542135,41571.0,41564.0,0.387797]
[1641735122865,0.00021178,41568.0,41564.0,0.387797]
[1641735123604,0.00021178,41568.0,41564.0,0.437797]
[1641735123805,0.00020772,41568.0,41564.0,0.437797]
[1641735124205,0.00020772,41568.0,41564.0,0.387797]
[1641735124808,0.00125457,41572.0,41564.0,0.387797]
[1641735125005,0.00020772,41568.0,41563.0,0.36094741]
[1641735125207,0.00020772,41568.0,41564.0,0.387797]
[1641735126110,0.00020786,41568.0,41564.0,0.387797]
[1641735127012,0.00125457,41572.0,41564.0,0.387797]
[1641735127211,0.00020786,41568.0,41564.0,0.387797]
[1641735128051,0.00125457,41572.0,41564.0,0.437797]
[1641735128350,0.00020793,41568.0,41564.0,0.437797]
[1641735129150,1.19904839,41576.0,41566.0,0.2750052]
[1641735129350,0.00020793,41568.0,41566.0,0.2750052]
[1641735129551,0.00020793,41568.0,41567.0,0.73851546]
[1641735130352,0.00193458,41574.0,41567.0,1.15851546]
[1641735130551,0.00020792,41570.0,41569.0,0.060143]
[1641735130751,0.00020792,41570.0,41569.0,0.868225]
[1641735130950,0.00020792,41570.0,41569.0,0.863225]
[1641735131401,0.00193458,41574.0,41569.0,0.863225]
[1641735131698,0.00193458,41574.0,41571.0,0.120286]
[1641735131699,0.00020792,41572.0,41571.0,0.120286]
[1641735131902,0.00020792,41572.0,41571.0,0.387652]
[1641735132501,0.25,41572.0,41571.0,0.387652]
[1641735132700,0.50733592,41572.0,41571.0,0.387652]
[1641735132899,0.25,41572.0,41567.0,0.42]
[1641735133099,0.00020791,41574.0,41567.0,0.42]
[1641735133100,0.00020791,41574.0,41568.0,0.387652]
[1641735133300,0.31571828,41569.0,41568.0,0.387652]
[1641735134400,0.55838815,41569.0,41568.0,0.387652]
[1641735134601,0.31571828,41569.0,41568.0,0.387652]
[1641735137642,0.00020792,41571.0,41568.0,0.387652]
[1641735137846,0.00020792,41571.0,41569.0,0.060152]
[1641735138045,0.29275756,41577.0,41570.0,0.387652]
[1641735138343,0.00020792,41572.0,41569.0,0.18045398]
[1641735138598,0.00020792,41572.0,41570.0,0.387652]
[1641735138800,0.24181508,41571.0,41570.0,0.387652]
[1641735142101,0.23681508,41571.0,41570.0,0.387652]
[1641735142554,0.00020791,41573.0,41572.0,0.060147]
[1641735142750,0.00020791,41573.0,41572.0,0.387652]
[1641735143450,0.26443762,41573.0,41572.0,0.387652]
[1641735143651,0.26422971,41573.0,41572.0,0.387652]
[1641735143850,0.51633821,41573.0,41571.0,0.120293]
[1641735144054,0.24839115,41572.0,41568.0,0.060158]
[1641735144253,0.26422971,41573.0,41568.0,0.060158]
[1641735144452,0.24864623,41572.0,41568.0,0.060158]
[1641735144652,0.26422971,41573.0,41569.0,0.387652]
[1641735144853,0.26443762,41573.0,41569.0,0.387652]
[1641735145654,0.26443762,41573.0,41570.0,0.12030669]
[1641735145854,0.00020791,41573.0,41571.0,0.387652]
[1641735146705,0.00020791,41573.0,41571.0,0.62824111]
[1641735146900,0.57213458,41584.0,41571.0,0.62824111]
[1641735146901,0.2526041,41582.0,41580.0,0.33613962]
[1641735147097,0.4,41583.0,41578.0,0.394073]
[1641735147297,0.4,41583.0,41580.0,0.060135]
[1641735147498,0.63999589,41582.0,41572.0,0.27558477]
[1641735147697,0.25068441,41581.0,41576.0,0.12026851]
[1641735147898,0.4,41583.0,41578.0,0.12027]
[1641735148097,0.00020803,41579.0,41578.0,0.12027]
[1641735148498,0.00020803,41579.0,41578.0,0.180406]
[1641735149098,0.26157997,41581.0,41578.0,0.12027]
[1641735149301,0.26178799,41581.0,41578.0,0.12027]
[1641735149698,0.26178799,41581.0,41578.0,0.180411]
[1641735150154,0.28037869,41583.0,41579.0,0.06014]
[1641735150454,0.00020802,41582.0,41576.0,0.120282]
[1641735150652,0.00020802,41582.0,41576.0,0.180426]
[1641735150853,0.00020802,41582.0,41578.0,0.060141]
[1641735151055,0.35494661,41581.0,41578.0,0.060141]
[1641735152153,0.32240367,41580.0,41576.0,0.001]
[1641735152356,0.25664489,41579.0,41576.0,0.001]
[1641735152554,0.25664489,41579.0,41574.0,0.12029]
[1641735152756,0.32240367,41580.0,41574.0,0.12029]
[1641735152957,0.29128136,41575.0,41574.0,0.12029]
[1641735153600,0.32240367,41580.0,41576.0,0.060148]
[1641735153601,0.00020791,41577.0,41576.0,0.060148]
[1641735153801,0.00020791,41577.0,41574.0,0.12029]
[1641735154606,0.32907999,41578.0,41576.0,0.06014255]
[1641735155203,0.32907999,41578.0,41575.0,0.060148]
[1641735155603,0.32887209,41578.0,41575.0,0.060148]
[1641735157560,0.0002079,41579.0,41575.0,0.060148]
[1641735157749,0.0002079,41579.0,41577.0,0.060141]
[1641735158150,0.0002079,41579.0,41577.0,0.120282]
[1641735158753,0.0002079,41579.0,41577.0,0.49984849]
[1641735158954,0.38852808,41584.0,41577.0,0.49984849]
[1641735159153,0.0002079,41580.0,41579.0,0.060136]
[1641735159352,0.0002079,41580.0,41579.0,0.447788]
[1641735159553,0.0002079,41580.0,41579.0,0.497788]
[1641735159955,0.0002079,41580.0,41579.0,0.78572149]
[1641735160153,0.38873597,41582.0,41579.0,0.78572149]
[1641735160355,0.38873597,41582.0,41580.0,0.12026]
[1641735160555,0.00020789,41582.0,41580.0,0.12026]